[Event "WJCC U20 Girls 2019"]
[Site "New Delhi"]
[Date "2019.10.17"]
[Round "3.6"]
[White "Katkov, Michelle"]
[Black "Salimova, Nurgyul"]
[Result "1-0"]
[ECO "B08"]
[WhiteElo "2106"]
[BlackElo "2415"]
[Annotator "RC"]
[PlyCount "99"]
[EventDate "2019.10.15"]
[EventType "swiss"]
[EventCountry "IND"]
[SourceTitle "playchess.com"]
[Source "ChessBase"]
[SourceQuality "1"]
[TimeControl "40/5400+30:1800+30"]

1. e4 {[%emt 0:00:00]} g6 {[%emt 0:00:00]} 2. d4 {[%emt 0:00:00]} Bg7 {[%emt 0:00:00]} 3. Nf3 {[%emt 0:01:03]} d6 {[%emt 0:00:00]} 4. Nc3 {[%emt 0:00:17]} Nf6 {[%emt 0:00:12]} 5. Be2 {[%emt 0:01:43]} O-O {[%emt 0:04:50]} 6. O-O {[%emt 0:03:06]} c6 {[%emt 0:10:34]} 7. a4 {[%emt 0:00:08]} Bg4 {[%emt 0:01:18]} 8. h3 {[%emt 0:03:23]} Bxf3 {[%emt 0:00:05]} 9. Bxf3 {[%emt 0:00:07]} Nbd7 {[%emt 0:00:11]} 10. Be3 {[%emt 0:03:36]} Qc7 {[%emt 0:01:59]} 11. Qd2 {[%emt 0:03:56]} Rac8 {[%emt 0:04:31]} 12. Rfd1 {[%emt 0:04:55]} c5 {[%emt 0:08:22]} 13. dxc5 {[%emt 0:14:16]} Nxc5 {[%emt 0:05:13]} 14. b4 {[%emt 0:13:32]} Ncd7 {[%emt 0:08:43]} 15. Nb5 {[%emt 0:02:00]} Qxc2 {[%emt 0:00:32]} 16. Nxa7 {[%emt 0:02:11]} Qxd2 {[%emt 0:00:22]} 17. Bxd2 {[%emt 0:02:21]} Rc4 {[%emt 0:05:31]} 18. Rac1 {[%emt 0:02:36]} Ne5 {[%emt 0:00:50]} 19. Rxc4 {[%emt 0:03:03]} Nxc4 {[%emt 0:00:02]} 20. a5 {[%emt 0:07:36]} Rb8 {[%emt 0:26:46]} 21. Bf4 {[%emt 0:04:49]} Nb2 {[%emt 0:04:38]} 22. Rd2 {[%emt 0:01:39]} Nd7 {[%emt 0:02:56]} 23. Be2 {[%emt 0:01:28]} Ra8 {[%emt 0:02:40]} 24. Be3 {[%emt 0:01:25]} f5 {[%emt 0:03:11]} 25. exf5 {[%emt 0:01:36]} gxf5 {[%emt 0:00:01]} 26. f4 {[%emt 0:02:37]} e5 {[%emt 0:03:34]} 27. Rxd6 {[%emt 0:02:35]} Nf8 {[%emt 0:01:45]} 28. fxe5 {[%emt 0:00:47]} Bxe5 {[%emt 0:00:20]} 29. Rd5 {[%emt 0:02:07]} Bg7 {[%emt 0:03:20]} 30. Rxf5 {[%emt 0:02:25]} Re8 {[%emt 0:00:06]} 31. Kf2 {[%emt 0:00:55]} Ng6 32. Nb5 {[%emt 0:06:24]} Ne5 {[%emt 0:01:56]} 33. Nd6 {[%emt 0:00:34]} Re7 {[%emt 0:01:03]} 34. b5 {[%emt 0:01:19]} Rd7 {[%emt 0:00:23]} 35. Ne4 {[%emt 0:00:53]} Nec4 {[%emt 0:00:41]} 36. Bxc4+ {[%emt 0:02:00]} Nxc4 {[%emt 0:00:01]} 37. a6 {[%emt 0:00:26]} bxa6 {[%emt 0:00:04]} 38. bxa6 {[%emt 0:00:05]} Rd8 {[%emt 0:00:54]} 39. Nc5 {[%emt 0:03:02]} Re8 {[%emt 0:00:24]} 40. Bf4 {[%emt 0:01:45]} Bd4+ {[%emt 0:00:18]} 41. Kf3 {[%emt 0:04:17]} Ra8 {[%emt 0:07:11]} 42. Ne6 {[%emt 0:03:41]} Bb6 {[%emt 0:01:18]} 43. Bh6 {[%emt 0:00:32]} Nd6 44. Rf8+ {[%emt 0:00:32]} Rxf8+ {[%emt 0:01:10]} 45. Bxf8 {[%emt 0:00:12]} Nc8 {[%emt 0:00:49]} 46. Bc5 {[%emt 0:00:48]} Bxc5 {[%emt 0:00:07]} 47. Nxc5 {[%emt 0:00:04]} Kf7 {[%emt 0:00:02]} 48. Ke4 {[%emt 0:00:44]} Ke7 {[%emt 0:00:04]} 49. Kd5 {[%emt 0:00:41]} Na7 {[%emt 0:00:03]} 50. Ne4 {[%emt 0:00:42]} 1-0

[Event "WJCC U20 Girls 2019"]
[Site "New Delhi"]
[Date "2019.10.17"]
[Round "3.7"]
[White "Aakanksha Hagawane"]
[Black "Shuvalova, Polina"]
[Result "0-1"]
[ECO "C24"]
[WhiteElo "2181"]
[BlackElo "2412"]
[Annotator "ChessBase"]
[PlyCount "92"]
[EventDate "2019.10.15"]
[EventType "swiss"]
[EventCountry "IND"]
[SourceTitle "playchess.com"]
[Source "ChessBase"]
[SourceQuality "1"]
[TimeControl "40/5400+30:1800+30"]

1. e4 {[%emt 0:00:00]} e5 {[%emt 0:00:00]} 2. Bc4 {[%emt 0:00:00]} Nf6 {[%emt 0:00:00]} 3. d3 {[%emt 0:00:06]} c6 {[%emt 0:00:00]} 4. Nf3 {[%emt 0:00:13]} d5 {[%emt 0:00:05]} 5. Bb3 {[%emt 0:00:14]} Bb4+ {[%emt 0:00:37]} 6. Bd2 {[%emt 0:00:39]} Bxd2+ {[%emt 0:00:06]} 7. Qxd2 {[%emt 0:00:02]} O-O {[%emt 0:00:26]} 8. exd5 {[%emt 0:00:23]} cxd5 {[%emt 0:01:43]} 9. Nxe5 {[%emt 0:00:32]} a5 {[%emt 0:00:14]} 10. a4 {[%emt 0:00:19]} Nc6 {[%emt 0:01:03]} 11. f4 {[%emt 0:00:37]} Re8 12. O-O {[%emt 0:01:02]} Nxe5 {[%emt 0:04:15]} 13. fxe5 {[%emt 0:00:06]} Rxe5 {[%emt 0:00:03]} 14. Nc3 {[%emt 0:00:20]} Bd7 {[%emt 0:06:08]} 15. Rae1 {[%emt 0:04:37]} Rxe1 {[%emt 0:02:17]} 16. Qxe1 {[%emt 0:04:50]} Bc6 {[%emt 0:01:07]} 17. Qf2 {[%emt 0:06:15]} Qd6 {[%emt 0:05:35]} 18. Qf4 {[%emt 0:06:25]} Qe7 {[%emt 0:03:53]} 19. Qd4 {[%emt 0:06:03]} Rd8 {[%emt 0:02:27]} 20. Rf2 {[%emt 0:02:52]} Qe1+ {[%emt 0:00:44]} 21. Rf1 {[%emt 0:00:11]} Qe7 {[%emt 0:00:14]} 22. Rf2 {[%emt 0:02:25]} h6 {[%emt 0:02:51]} 23. Re2 {[%emt 0:03:09]} Qd6 {[%emt 0:01:11]} 24. h3 {[%emt 0:04:21]} Nd7 {[%emt 0:10:48]} 25. Ne4 {[%emt 0:21:59]} Qc7 {[%emt 0:12:06]} 26. Nd2 {[%emt 0:06:20]} Qb6 {[%emt 0:07:03]} 27. Nf3 {[%emt 0:00:54]} Kf8 {[%emt 0:01:03]} 28. Rf2 {[%emt 0:04:30]} Qxd4 {[%emt 0:01:29]} 29. Nxd4 {[%emt 0:00:01]} Nc5 {[%emt 0:00:11]} 30. Nxc6 {[%emt 0:10:03]} bxc6 {[%emt 0:00:08]} 31. d4 {[%emt 0:00:07]} Ne4 {[%emt 0:03:57]} 32. Rf3 Rb8 {[%emt 0:00:14]} 33. Rd3 {[%emt 0:02:48]} Rb4 {[%emt 0:03:34]} 34. g3 {[%emt 0:00:52]} Ke7 {[%emt 0:01:25]} 35. Kg2 {[%emt 0:00:14]} f5 {[%emt 0:00:32]} 36. h4 {[%emt 0:03:14]} g5 {[%emt 0:00:33]} 37. hxg5 {[%emt 0:00:11]} hxg5 {[%emt 0:00:08]} 38. Kf3 {[%emt 0:00:26]} Kf6 {[%emt 0:04:53]} 39. Kg2 {[%emt 0:01:14]} g4 {[%emt 0:02:11]} 40. Kg1 {[%emt 0:02:41]} Kg5 {[%emt 0:01:59]} 41. Kf1 {[%emt 0:31:46]} f4 {[%emt 0:34:30]} 42. gxf4+ {[%emt 0:01:43]} Kxf4 {[%emt 0:00:04]} 43. Kg2 {[%emt 0:01:21]} Rb8 {[%emt 0:00:16]} 44. Rd1 {[%emt 0:02:39]} Ke3 {[%emt 0:01:08]} 45. Kg1 {[%emt 0:02:41]} g3 {[%emt 0:01:51]} 46. Kg2 {[%emt 0:00:59]} Rh8 0-1

[Event "WJCC U20 Girls 2019"]
[Site "New Delhi"]
[Date "2019.10.17"]
[Round "3.8"]
[White "Vaishali R"]
[Black "Sapale Saloni"]
[Result "1-0"]
[ECO "C10"]
[WhiteElo "2385"]
[BlackElo "2142"]
[Annotator "ChessBase"]
[PlyCount "52"]
[EventDate "2019.10.15"]
[EventType "swiss"]
[EventCountry "IND"]
[SourceTitle "playchess.com"]
[Source "ChessBase"]
[SourceQuality "1"]
[TimeControl "40/5400+30:1800+30"]

1. e4 {[%emt 0:00:08]} e6 {[%emt 0:00:34]} 2. d4 {[%emt 0:00:09]} d5 {[%emt 0:00:30]} 3. Nd2 {[%emt 0:00:30]} dxe4 {[%emt 0:00:30]} 4. Nxe4 {[%emt 0:00:30]} Bd7 {[%emt 0:00:00]} 5. Nf3 {[%emt 0:00:00]} Bc6 {[%emt 0:00:00]} 6. Bd3 {[%emt 0:00:00]} Nd7 {[%emt 0:00:01]} 7. O-O {[%emt 0:00:00]} Ngf6 {[%emt 0:00:09]} 8. Ng3 {[%emt 0:00:00]} Bxf3 {[%emt 0:13:48]} 9. Qxf3 {[%emt 0:00:00]} c6 {[%emt 0:00:08]} 10. Re1 {[%emt 0:00:11]} Be7 {[%emt 0:00:35]} 11. b3 {[%emt 0:01:22]} O-O {[%emt 0:02:04]} 12. Bb2 {[%emt 0:00:18]} Re8 {[%emt 0:02:52]} 13. c4 {[%emt 0:00:49]} Bf8 {[%emt 0:05:22]} 14. Rad1 {[%emt 0:07:54]} Qb6 {[%emt 0:07:52]} 15. Ne4 {[%emt 0:09:12]} Be7 {[%emt 0:13:21]} 16. Qh3 {[%emt 0:10:49]} g6 {[%emt 0:09:37]} 17. Ng5 {[%emt 0:25:34]} Bf8 {[%emt 0:11:34]} 18. Re3 {[%emt 0:07:26]} Bg7 {[%emt 0:02:16]} 19. Qh4 {[%emt 0:04:41]} Rad8 {[%emt 0:02:36]} 20. Rde1 {[%emt 0:02:27]} Nf8 {[%emt 0:06:07]} 21. Bc2 {[%emt 0:07:56]} N8d7 {[%emt 0:02:20]} 22. Bc3 {[%emt 0:06:45]} Qc7 {[%emt 0:03:55]} 23. Rh3 {[%emt 0:03:55]} Nf8 {[%emt 0:00:30]} 24. Qf4 {[%emt 0:04:03]} Qe7 {[%emt 0:10:13]} 25. Qe3 {[%emt 0:04:23]} Nh5 {[%emt 0:02:09]} 26. Rxh5 {[%emt 0:00:52]} Qc7 {[%emt 0:00:07]} 1-0

[Event "WJCC U20 Girls 2019"]
[Site "New Delhi"]
[Date "2019.10.17"]
[Round "3.11"]
[White "Divya Deshmukh"]
[Black "Harshita Guddanti"]
[Result "1-0"]
[ECO "A45"]
[WhiteElo "2358"]
[BlackElo "2123"]
[Annotator "ChessBase"]
[PlyCount "79"]
[EventDate "2019.10.15"]
[EventType "swiss"]
[EventCountry "IND"]
[SourceTitle "playchess.com"]
[Source "ChessBase"]
[SourceQuality "1"]
[TimeControl "40/5400+30:1800+30"]

1. d4 {[%emt 0:00:00]} Nf6 {[%emt 0:00:04]} 2. Bg5 {[%emt 0:00:00]} d5 {[%emt 0:00:20]} 3. e3 {[%emt 0:00:00]} c5 {[%emt 0:00:06]} 4. Bxf6 {[%emt 0:00:08]} gxf6 {[%emt 0:00:08]} 5. Nc3 {[%emt 0:00:04]} e6 {[%emt 0:00:17]} 6. Qh5 {[%emt 0:00:17]} cxd4 {[%emt 0:09:31]} 7. exd4 {[%emt 0:00:16]} Nc6 {[%emt 0:02:45]} 8. Nf3 {[%emt 0:01:57]} Qb6 {[%emt 0:08:14]} 9. Bb5 {[%emt 0:05:09]} Bb4 {[%emt 0:10:59]} 10. O-O {[%emt 0:04:38]} Bd7 {[%emt 0:04:25]} 11. Bxc6 {[%emt 0:04:31]} Qxc6 {[%emt 0:02:09]} 12. a3 {[%emt 0:08:18]} Be7 {[%emt 0:13:51]} 13. Rfe1 {[%emt 0:05:55]} Qd6 {[%emt 0:05:41]} 14. a4 {[%emt 0:04:01]} a6 {[%emt 0:02:12]} 15. Re3 {[%emt 0:13:43]} O-O-O {[%emt 0:03:21]} 16. Qxf7 {[%emt 0:00:59]} Rdf8 {[%emt 0:01:08]} 17. Qh5 {[%emt 0:00:06]} Rfg8 {[%emt 0:05:28]} 18. Ne2 {[%emt 0:10:11]} Rg6 {[%emt 0:05:18]} 19. g3 {[%emt 0:12:12]} Kb8 {[%emt 0:07:10]} 20. Kh1 {[%emt 0:05:36]} Be8 {[%emt 0:03:33]} 21. Qh3 {[%emt 0:02:13]} Bd7 {[%emt 0:00:33]} 22. Qf1 {[%emt 0:01:46]} h5 {[%emt 0:01:05]} 23. Nf4 {[%emt 0:07:26]} Rg4 {[%emt 0:02:53]} 24. Ng2 {[%emt 0:03:27]} h4 {[%emt 0:02:50]} 25. Ngxh4 {[%emt 0:01:12]} Rg7 {[%emt 0:04:02]} 26. Ng2 {[%emt 0:01:17]} Rgh7 {[%emt 0:00:47]} 27. h4 {[%emt 0:01:46]} e5 {[%emt 0:03:28]} 28. dxe5 {[%emt 0:01:22]} fxe5 {[%emt 0:00:04]} 29. Nxe5 {[%emt 0:00:02]} Bh3 {[%emt 0:00:58]} 30. Qe2 {[%emt 0:02:27]} Bg5 {[%emt 0:00:50]} 31. Nf7 {[%emt 0:00:53]} Rxf7 {[%emt 0:00:46]} 32. Re8+ {[%emt 0:00:01]} Rxe8 {[%emt 0:00:32]} 33. Qxe8+ {[%emt 0:00:01]} Ka7 {[%emt 0:00:22]} 34. Qxf7 {[%emt 0:00:06]} Bf6 {[%emt 0:00:15]} 35. Kh2 {[%emt 0:03:31]} Bf5 {[%emt 0:00:07]} 36. c3 {[%emt 0:01:35]} Be4 {[%emt 0:00:13]} 37. Rd1 {[%emt 0:00:38]} Qb6 {[%emt 0:00:04]} 38. Rd2 {[%emt 0:00:08]} d4 {[%emt 0:00:18]} 39. cxd4 {[%emt 0:00:12]} Bxd4 {[%emt 0:00:04]} 40. Qf4 {[%emt 0:00:19]} 1-0

[Event "WJCC U20 Girls 2019"]
[Site "New Delhi"]
[Date "2019.10.17"]
[Round "3.13"]
[White "Solozhenkina, Elizaveta"]
[Black "Ferkova, Dominika"]
[Result "1-0"]
[ECO "B12"]
[WhiteElo "2283"]
[BlackElo "2096"]
[Annotator "ChessBase"]
[PlyCount "47"]
[EventDate "2019.10.15"]
[EventType "swiss"]
[EventCountry "IND"]
[SourceTitle "playchess.com"]
[Source "ChessBase"]
[SourceQuality "1"]
[TimeControl "40/5400+30:1800+30"]

1. e4 {[%emt 0:00:00]} c6 {[%emt 0:00:00]} 2. d4 {[%emt 0:00:00]} d5 {[%emt 0:00:00]} 3. e5 {[%emt 0:00:00]} Bf5 {[%emt 0:00:00]} 4. Nf3 {[%emt 0:00:08]} e6 {[%emt 0:00:35]} 5. Be2 {[%emt 0:00:19]} c5 {[%emt 0:02:46]} 6. Be3 {[%emt 0:00:31]} Nc6 {[%emt 0:01:46]} 7. dxc5 {[%emt 0:10:36]} Qc7 {[%emt 0:08:32]} 8. Na3 {[%emt 0:08:20]} a6 {[%emt 0:14:50]} 9. c3 {[%emt 0:02:17]} Nge7 {[%emt 0:10:21]} 10. Qa4 {[%emt 0:03:16]} Rc8 {[%emt 0:17:53]} 11. b4 {[%emt 0:25:56]} Ng6 {[%emt 0:02:44]} 12. Nd4 {[%emt 0:12:00]} Qxe5 {[%emt 0:13:38]} 13. O-O {[%emt 0:01:01]} Be7 {[%emt 0:05:40]} 14. Bxa6 {[%emt 0:13:12]} O-O {[%emt 0:04:35]} 15. Bxb7 {[%emt 0:02:33]} Nxd4 {[%emt 0:01:18]} 16. cxd4 {[%emt 0:08:45]} Qe4 {[%emt 0:00:28]} 17. Rfe1 {[%emt 0:00:04]} Rb8 {[%emt 0:04:50]} 18. Bc6 {[%emt 0:04:48]} Bd8 {[%emt 0:01:55]} 19. Nb5 {[%emt 0:01:12]} Rxb5 {[%emt 0:04:02]} 20. Bxb5 {[%emt 0:00:36]} Bc7 {[%emt 0:00:50]} 21. Bf1 {[%emt 0:01:03]} Qh4 {[%emt 0:01:31]} 22. g3 {[%emt 0:00:39]} Qh5 {[%emt 0:00:07]} 23. Qd1 {[%emt 0:00:12]} Bg4 {[%emt 0:00:40]} 24. Be2 {[%emt 0:00:04]} 1-0

[Event "WJCC U20 Girls 2019"]
[Site "New Delhi"]
[Date "2019.10.17"]
[Round "3.14"]
[White "Tsotsonava, Elene"]
[Black "Vantika Agrawal"]
[Result "*"]
[ECO "B96"]
[WhiteElo "1905"]
[BlackElo "2283"]
[Annotator "ChessBase"]
[PlyCount "29"]
[EventDate "2019.10.15"]
[EventType "swiss"]
[EventCountry "IND"]
[SourceTitle "playchess.com"]
[Source "ChessBase"]
[SourceQuality "1"]
[TimeControl "40/5400+30:1800+30"]

1. e4 {[%emt 0:00:00]} c5 {[%emt 0:00:28]} 2. Nf3 {[%emt 0:00:00]} d6 {[%emt 0:00:11]} 3. d4 {[%emt 0:00:00]} cxd4 {[%emt 0:00:09]} 4. Nxd4 {[%emt 0:00:04]} Nf6 {[%emt 0:00:05]} 5. Nc3 {[%emt 0:00:07]} a6 {[%emt 0:00:04]} 6. Bg5 {[%emt 0:00:16]} e6 {[%emt 0:00:36]} 7. f4 {[%emt 0:00:12]} h6 {[%emt 0:00:11]} 8. Bh4 {[%emt 0:04:50]} Qb6 {[%emt 0:00:09]} 9. Qd2 {[%emt 0:03:16]} Qxb2 {[%emt 0:01:18]} 10. Rb1 {[%emt 0:00:08]} Qa3 {[%emt 0:00:06]} 11. f5 {[%emt 0:00:15]} Be7 {[%emt 0:22:04]} 12. fxe6 {[%emt 0:06:55]} Bxe6 {[%emt 0:04:01]} 13. Rb2 b6 14. Rxb6 {[%emt 0:07:00]} Nbd7 {[%emt 0:04:15]} 15. Rb7 {[%emt 0:12:12]} *

[Event "WJCC U20 Girls 2019"]
[Site "New Delhi"]
[Date "2019.10.17"]
[Round "3.14"]
[White "Tsotsonava, Elene"]
[Black "Vantika Agrawal"]
[Result "0-1"]
[ECO "B96"]
[WhiteElo "1905"]
[BlackElo "2283"]
[Annotator "ChessBase"]
[PlyCount "68"]
[EventDate "2019.10.15"]
[EventType "swiss"]
[EventCountry "IND"]
[SourceTitle "playchess.com"]
[Source "ChessBase"]
[SourceQuality "1"]
[TimeControl "40/5400+30:1800+30"]

1. e4 {[%emt 0:00:00]} c5 {[%emt 0:00:28]} 2. Nf3 {[%emt 0:00:00]} d6 {[%emt 0:00:11]} 3. d4 {[%emt 0:00:00]} cxd4 {[%emt 0:00:09]} 4. Nxd4 {[%emt 0:00:04]} Nf6 {[%emt 0:00:05]} 5. Nc3 {[%emt 0:00:07]} a6 {[%emt 0:00:04]} 6. Bg5 {[%emt 0:00:16]} e6 {[%emt 0:00:36]} 7. f4 {[%emt 0:00:12]} h6 {[%emt 0:00:11]} 8. Bh4 {[%emt 0:04:50]} Qb6 {[%emt 0:00:09]} 9. Qd2 {[%emt 0:03:16]} Qxb2 {[%emt 0:01:18]} 10. Rb1 {[%emt 0:00:08]} Qa3 {[%emt 0:00:06]} 11. f5 {[%emt 0:00:15]} Be7 {[%emt 0:22:04]} 12. fxe6 {[%emt 0:06:55]} Bxe6 {[%emt 0:04:01]} 13. Rxb7 {[%emt 0:06:30]} Nbd7 14. Nxe6 {[%emt 0:12:12]} fxe6 {[%emt 0:04:34]} 15. Bc4 {[%emt 0:00:43]} Nc5 {[%emt 0:12:33]} 16. Rc7 {[%emt 0:09:08]} Kd8 {[%emt 0:39:13]} 17. Bxf6 {[%emt 0:08:57]} gxf6 {[%emt 0:01:04]} 18. Rc6 {[%emt 0:00:52]} Qb4 {[%emt 0:04:51]} 19. Qd4 {[%emt 0:16:22]} e5 {[%emt 0:04:56]} 20. Rxd6+ {[%emt 0:00:28]} Kc7 {[%emt 0:00:40]} 21. Qd2 {[%emt 0:09:58]} Qxc4 {[%emt 0:00:09]} 22. Nd5+ {[%emt 0:00:06]} Kxd6 {[%emt 0:00:20]} 23. Ne3+ {[%emt 0:00:50]} Nd3+ {[%emt 0:00:32]} 24. cxd3 {[%emt 0:00:18]} Qc5 {[%emt 0:01:06]} 25. Ke2 {[%emt 0:02:44]} Rac8 26. Nc4+ {[%emt 0:00:36]} Ke6 {[%emt 0:01:16]} 27. Rb1 {[%emt 0:01:01]} Qd4 {[%emt 0:00:51]} 28. Qa5 {[%emt 0:02:32]} Rhd8 {[%emt 0:00:49]} 29. Qxa6+ {[%emt 0:01:25]} Kf7 {[%emt 0:00:05]} 30. Ne3 {[%emt 0:01:01]} Ra8 {[%emt 0:01:15]} 31. Qb7 {[%emt 0:02:40]} Qxd3+ {[%emt 0:00:23]} 32. Kf3 {[%emt 0:00:28]} Rxa2 {[%emt 0:00:32]} 33. Rb3 {[%emt 0:01:29]} Qe2+ {[%emt 0:00:05]} 34. Kg3 {[%emt 0:00:04]} Rg8+ {[%emt 0:01:02]} 0-1

[Event "WJCC U20 Girls 2019"]
[Site "New Delhi"]
[Date "2019.10.17"]
[Round "3.16"]
[White "Protopopova, Anastasiya"]
[Black "Potluri Supreetha"]
[Result "1-0"]
[ECO "E73"]
[WhiteElo "2263"]
[BlackElo "1767"]
[Annotator "ChessBase"]
[PlyCount "91"]
[EventDate "2019.10.15"]
[EventType "swiss"]
[EventCountry "IND"]
[SourceTitle "playchess.com"]
[Source "ChessBase"]
[SourceQuality "1"]
[TimeControl "40/5400+30:1800+30"]

1. d4 Nf6 2. c4 g6 3. Nc3 Bg7 4. e4 d6 5. Be2 O-O 6. Bg5 c5 7. d5 h6 8. Be3 e6 9. Qd2 exd5 10. exd5 Kh7 11. h4 Ng4 12. Bf4 Re8 13. Nh3 Bxc3 14. bxc3 Qe7 15. Kf1 Bf5 16. Re1 Nd7 17. f3 Ne3+ 18. Kf2 Nc2 19. Rc1 Qxe2+ 20. Qxe2 Rxe2+ 21. Kxe2 Bxh3 22. Rxc2 Bf5 23. Rd2 Nb6 24. g4 Bd7 25. Kd3 h5 26. Rg2 Re8 27. Bxd6 hxg4 28. fxg4 f5 29. Bxc5 fxg4 30. Bxb6 axb6 31. Re2 Bf5+ 32. Kd2 Rc8 33. Re7+ Kh6 34. Rxb7 Rxc4 35. Rb8 Rc5 36. Rd8 Be4 37. Rg1 Bxd5 38. Rxg4 Bxa2 39. Rd6 Bb1 40. Rxb6 Bf5 41. Rg5 Rd5+ 42. Kc1 Kh7 43. h5 Kh6 44. Rbxg6+ Bxg6 45. Rxd5 Bxh5 46. Rxh5+ {Kg5} 1-0

[Event "WJCC U20 Girls 2019"]
[Site "New Delhi"]
[Date "2019.10.17"]
[Round "3.18"]
[White "Toshali, V."]
[Black "Kiolbasa, Oliwia"]
[Result "1-0"]
[ECO "A47"]
[WhiteElo "1868"]
[BlackElo "2223"]
[Annotator "ChessBase"]
[PlyCount "93"]
[EventDate "2019.10.15"]
[EventType "swiss"]
[EventCountry "IND"]
[SourceTitle "playchess.com"]
[Source "ChessBase"]
[SourceQuality "1"]
[TimeControl "40/5400+30:1800+30"]

1. d4 {[%emt 0:00:00]} Nf6 {[%emt 0:00:00]} 2. Nf3 {[%emt 0:00:00]} b6 {[%emt 0:00:00]} 3. Bf4 {[%emt 0:00:08]} Bb7 {[%emt 0:00:10]} 4. e3 {[%emt 0:00:10]} g6 {[%emt 0:00:36]} 5. c3 {[%emt 0:01:29]} Bg7 {[%emt 0:00:55]} 6. Bd3 {[%emt 0:01:00]} d6 {[%emt 0:00:34]} 7. O-O {[%emt 0:01:17]} O-O {[%emt 0:00:17]} 8. h3 {[%emt 0:00:57]} Nbd7 {[%emt 0:00:30]} 9. Nbd2 {[%emt 0:05:03]} c5 {[%emt 0:00:43]} 10. Qe2 {[%emt 0:07:56]} a6 {[%emt 0:09:22]} 11. a4 {[%emt 0:00:47]} Re8 {[%emt 0:01:40]} 12. e4 {[%emt 0:07:45]} e5 {[%emt 0:08:04]} 13. dxe5 {[%emt 0:01:46]} Nxe5 {[%emt 0:07:34]} 14. Nxe5 {[%emt 0:08:57]} dxe5 {[%emt 0:00:09]} 15. Bg5 {[%emt 0:00:31]} Qc7 {[%emt 0:00:55]} 16. Qe3 {[%emt 0:07:08]} Nh5 {[%emt 0:03:01]} 17. Bc4 {[%emt 0:04:38]} Nf4 {[%emt 0:09:30]} 18. Bxf4 {[%emt 0:03:35]} exf4 {[%emt 0:00:02]} 19. Qf3 {[%emt 0:00:24]} Rad8 {[%emt 0:03:24]} 20. Rad1 {[%emt 0:05:03]} Bc6 {[%emt 0:02:59]} 21. b3 {[%emt 0:04:42]} Qe5 {[%emt 0:12:32]} 22. Bxa6 {[%emt 0:21:29]} Rxd2 {[%emt 0:08:19]} 23. Rxd2 {[%emt 0:00:15]} Bxe4 {[%emt 0:00:08]} 24. Qd1 {[%emt 0:03:38]} f3 {[%emt 0:06:28]} 25. Rd8 {[%emt 0:01:45]} Rxd8 {[%emt 0:00:41]} 26. Qxd8+ {[%emt 0:00:07]} Bf8 {[%emt 0:00:06]} 27. Re1 {[%emt 0:03:02]} Qf4 {[%emt 0:10:56]} 28. g3 {[%emt 0:01:21]} Qf5 {[%emt 0:00:02]} 29. Bc8 {[%emt 0:01:57]} Qe5 {[%emt 0:00:13]} 30. Bg4 {[%emt 0:01:39]} f5 {[%emt 0:04:57]} 31. Bxf3 {[%emt 0:00:36]} Qxc3 {[%emt 0:00:07]} 32. Re3 {[%emt 0:00:28]} Qd4 {[%emt 0:04:27]} 33. Qxb6 {[%emt 0:02:06]} Bh6 {[%emt 0:02:41]} 34. Qe6+ {[%emt 0:02:19]} Kg7 {[%emt 0:00:01]} 35. Qe7+ {[%emt 0:01:02]} Kg8 {[%emt 0:00:16]} 36. Rxe4 {[%emt 0:00:31]} fxe4 {[%emt 0:00:24]} 37. Bg4 {[%emt 0:00:52]} Qg7 {[%emt 0:01:56]} 38. Qxe4 {[%emt 0:00:24]} Qf8 {[%emt 0:01:15]} 39. a5 {[%emt 0:00:41]} Bg7 {[%emt 0:00:22]} 40. Kg2 {[%emt 0:01:24]} Bd4 {[%emt 0:00:08]} 41. Bf3 {[%emt 0:30:10]} Qc8 {[%emt 0:31:36]} 42. Be2 {[%emt 0:00:00]} Qf8 {[%emt 0:00:00]} 43. Bc4+ {[%emt 0:00:00]} Kg7 {[%emt 0:00:00]} 44. Qf3 {[%emt 0:00:00]} Qe7 {[%emt 0:00:00]} 45. a6 {[%emt 0:00:00]} Qa7 {[%emt 0:00:00]} 46. Qd5 {[%emt 0:00:00]} Kf6 {[%emt 0:00:00]} 47. f4 {[%emt 0:00:00]} 1-0

[Event "WJCC U20 Girls 2019"]
[Site "New Delhi"]
[Date "2019.10.17"]
[Round "3.22"]
[White "Onur, Cigdem"]
[Black "Li, Yunshan"]
[Result "1/2-1/2"]
[ECO "B13"]
[WhiteElo "1913"]
[BlackElo "2289"]
[Annotator "ChessBase"]
[PlyCount "93"]
[EventDate "2019.10.15"]
[EventType "swiss"]
[EventCountry "IND"]
[SourceTitle "playchess.com"]
[Source "ChessBase"]
[SourceQuality "1"]
[TimeControl "40/5400+30:1800+30"]

1. e4 {[%emt 0:00:37]} c6 {[%emt 0:00:01]} 2. d4 {[%emt 0:00:07]} d5 {[%emt 0:00:05]} 3. exd5 {[%emt 0:00:05]} cxd5 {[%emt 0:00:05]} 4. c4 {[%emt 0:00:06]} Nf6 {[%emt 0:01:07]} 5. Nc3 {[%emt 0:00:12]} Nc6 {[%emt 0:00:41]} 6. Bg5 {[%emt 0:05:17]} e6 {[%emt 0:05:25]} 7. c5 {[%emt 0:05:13]} Be7 {[%emt 0:01:03]} 8. Bb5 {[%emt 0:02:20]} O-O {[%emt 0:07:28]} 9. Nf3 {[%emt 0:03:20]} Ne4 {[%emt 0:06:04]} 10. Nxe4 {[%emt 0:29:33]} dxe4 {[%emt 0:00:34]} 11. Bxc6 {[%emt 0:01:11]} bxc6 {[%emt 0:01:21]} 12. Bxe7 {[%emt 0:00:07]} Qxe7 {[%emt 0:00:09]} 13. Ne5 {[%emt 0:04:06]} Ba6 {[%emt 0:01:13]} 14. Qc2 {[%emt 0:06:51]} Qb7 {[%emt 0:01:56]} 15. O-O-O {[%emt 0:10:47]} f6 {[%emt 0:01:36]} 16. Nc4 {[%emt 0:01:14]} Qb4 {[%emt 0:00:41]} 17. b3 {[%emt 0:19:34]} e5 {[%emt 0:13:49]} 18. Qd2 {[%emt 0:03:49]} Rab8 {[%emt 0:14:44]} 19. Qxb4 {[%emt 0:00:08]} Rxb4 {[%emt 0:00:01]} 20. Kc2 {[%emt 0:02:05]} Bxc4 {[%emt 0:01:30]} 21. Kc3 {[%emt 0:00:09]} Bxb3 {[%emt 0:02:04]} 22. Kxb4 {[%emt 0:00:18]} Bxd1 {[%emt 0:00:05]} 23. Rxd1 {[%emt 0:00:05]} Rd8 {[%emt 0:00:42]} 24. d5 {[%emt 0:00:51]} Kf7 {[%emt 0:22:45]} 25. dxc6 {[%emt 0:00:43]} Ke7 {[%emt 0:00:21]} 26. Rxd8 {[%emt 0:03:31]} Kxd8 {[%emt 0:00:02]} 27. Kc4 {[%emt 0:00:01]} Kc7 {[%emt 0:01:01]} 28. Kd5 {[%emt 0:00:05]} a5 {[%emt 0:00:37]} 29. g4 {[%emt 0:01:15]} a4 {[%emt 0:13:33]} 30. h4 {[%emt 0:00:38]} g6 {[%emt 0:01:48]} 31. h5 {[%emt 0:00:36]} a3 {[%emt 0:02:01]} 32. h6 {[%emt 0:00:07]} f5 {[%emt 0:00:37]} 33. gxf5 {[%emt 0:00:04]} gxf5 {[%emt 0:00:02]} 34. Kxe5 {[%emt 0:00:17]} Kxc6 {[%emt 0:00:12]} 35. Kxf5 {[%emt 0:00:08]} Kxc5 {[%emt 0:00:15]} 36. Kf6 {[%emt 0:00:34]} Kd6 {[%emt 0:00:26]} 37. Kg7 {[%emt 0:01:50]} Ke7 {[%emt 0:00:06]} 38. Kxh7 {[%emt 0:00:25]} Kf7 {[%emt 0:00:04]} 39. Kh8 {[%emt 0:00:05]} Kg6 {[%emt 0:00:56]} 40. Kg8 {[%emt 0:00:45]} Kxh6 {[%emt 0:00:06]} 41. Kf7 {[%emt 0:30:15]} Kg5 {[%emt 0:30:12]} 42. Ke6 {[%emt 0:00:17]} Kf4 {[%emt 0:00:37]} 43. Kd5 {[%emt 0:00:13]} Kf3 {[%emt 0:00:24]} 44. Kd4 {[%emt 0:00:08]} Kxf2 {[%emt 0:00:32]} 45. Kxe4 {[%emt 0:00:06]} Ke2 {[%emt 0:00:03]} 46. Kd4 {[%emt 0:00:23]} Kd2 {[%emt 0:00:06]} 47. Ke4 {[%emt 0:00:32]} 1/2-1/2